[Event "Venerd-dì-rapid!"]
[Site "Chess.com"]
[Date "2020.04.17"]
[Round "3"]
[White "fausto2p"]
[Black "giulioscaglione"]
[Result "0-1"]
[WhiteElo "899"]
[BlackElo "1278"]
[TimeControl "720+3"]
[EndTime "7:21:54 PDT"]
[Termination "giulioscaglione ha vinto per abbandono"]

1. d4 {[%clk 0:11:53.8]} 1... e6 {[%clk 0:09:58.1]} 2. c4 {[%clk 0:11:44]} 2...
Bb4+ {[%clk 0:09:54.7]} 3. Nc3 {[%clk 0:11:38.8]} 3... b6 {[%clk 0:09:53.7]} 4.
e3 {[%clk 0:11:33]} 4... Bb7 {[%clk 0:09:45.7]} 5. a3 {[%clk 0:11:13.3]} 5...
Bxc3+ {[%clk 0:09:43.9]} 6. bxc3 {[%clk 0:11:13.3]} 6... Ne7 {[%clk 0:09:46]} 7.
Nf3 {[%clk 0:10:47]} 7... d6 {[%clk 0:09:44.4]} 8. Be2 {[%clk 0:10:21.6]} 8...
O-O {[%clk 0:09:37]} 9. O-O {[%clk 0:10:22.3]} 9... c5 {[%clk 0:09:34.7]} 10. a4
{[%clk 0:10:13.9]} 10... Ng6 {[%clk 0:09:18.3]} 11. Ba3 {[%clk 0:09:28.8]} 11...
Nd7 {[%clk 0:08:58]} 12. dxc5 {[%clk 0:09:11.4]} 12... dxc5 {[%clk 0:08:57.1]}
13. Rb1 {[%clk 0:09:01.8]} 13... Nf6 {[%clk 0:08:57.4]} 14. Qxd8 {[%clk
0:08:47.3]} 14... Rfxd8 {[%clk 0:08:45.5]} 15. Rfd1 {[%clk 0:08:39.9]} 15...
Rxd1+ {[%clk 0:07:54.4]} 16. Rxd1 {[%clk 0:08:40.1]} 16... Ne4 {[%clk
0:07:55.5]} 17. Bb2 {[%clk 0:08:33.3]} 17... Nf6 {[%clk 0:07:10.2]} 18. h3
{[%clk 0:08:25.2]} 18... Kf8 {[%clk 0:07:09.6]} 19. Ba3 {[%clk 0:08:20.1]} 19...
Ke8 {[%clk 0:07:04]} 20. a5 {[%clk 0:08:20.3]} 20... Rd8 {[%clk 0:06:53.2]} 21.
axb6 {[%clk 0:08:15.2]} 21... Rxd1+ {[%clk 0:06:53.4]} 22. Bxd1 {[%clk
0:08:15.2]} 22... axb6 {[%clk 0:06:55.5]} 23. Bc1 {[%clk 0:08:03.2]} 23... Bxf3
{[%clk 0:06:52.1]} 24. Bxf3 {[%clk 0:07:59.5]} 24... Ne5 {[%clk 0:06:49.6]} 25.
Bb7 {[%clk 0:07:37.7]} 25... Nxc4 {[%clk 0:06:29.1]} 26. Bc6+ {[%clk 0:07:36.6]}
26... Ke7 {[%clk 0:06:22.1]} 27. f3 {[%clk 0:07:23.4]} 27... Nd5 {[%clk
0:06:18.9]} 28. Bxd5 {[%clk 0:07:12.4]} 28... exd5 {[%clk 0:06:20]} 29. Kf2
{[%clk 0:07:07.8]} 29... g6 {[%clk 0:06:16.7]} 30. g4 {[%clk 0:06:56.8]} 30...
Ke6 {[%clk 0:06:02.1]} 31. Kg3 {[%clk 0:06:57.7]} 31... f5 {[%clk 0:05:40.7]}
32. Kf4 {[%clk 0:06:44.7]} 32... fxg4 {[%clk 0:05:30.5]} 33. hxg4 {[%clk
0:06:39.9]} 33... h6 {[%clk 0:05:10.8]} 34. Kg3 {[%clk 0:06:32]} 34... g5 {[%clk
0:04:42.6]} 35. f4 {[%clk 0:06:27.5]} 35... Kf6 {[%clk 0:04:09]} 36. fxg5+
{[%clk 0:06:15.5]} 36... hxg5 {[%clk 0:04:08.6]} 37. Kf3 {[%clk 0:06:12.9]}
37... Nd6 {[%clk 0:03:58.4]} 38. Bb2 {[%clk 0:05:41.7]} 38... Kg6 {[%clk
0:03:51.7]} 39. Ke2 {[%clk 0:04:39.9]} 39... Ne4 {[%clk 0:03:40.8]} 40. Kf3
{[%clk 0:03:42.6]} 40... Nd2+ {[%clk 0:03:32.6]} 41. Ke2 {[%clk 0:03:39.8]}
41... Nc4 {[%clk 0:03:33.6]} 42. Ba1 {[%clk 0:03:40.6]} 42... Kf6 {[%clk
0:03:20.9]} 43. Kf3 {[%clk 0:03:28.3]} 43... Ke5 {[%clk 0:03:14.8]} 44. Ke2
{[%clk 0:03:05]} 44... Ke4 {[%clk 0:03:15.7]} 45. Kf2 {[%clk 0:03:04.4]} 45...
Nxe3 {[%clk 0:03:10.9]} 46. Kg3 {[%clk 0:02:50.1]} 46... Kd3 {[%clk 0:02:38.1]}
47. Kf3 {[%clk 0:02:32.3]} 47... Nd1 {[%clk 0:02:31.6]} 48. c4 {[%clk
0:02:12.7]} 48... d4 {[%clk 0:02:27.5]} 49. Kg3 {[%clk 0:01:34.7]} 49... Kc2
{[%clk 0:02:19.2]} 50. Kf3 {[%clk 0:01:32.4]} 50... Kd3 {[%clk 0:02:03.5]} 51.
Kg3 {[%clk 0:01:32.4]} 51... Ke4 {[%clk 0:01:54.2]} 52. Kg2 {[%clk 0:01:20.4]}
52... Kf4 {[%clk 0:01:55]} 53. Kh3 {[%clk 0:01:21.5]} 53... Nf2+ {[%clk
0:01:50.4]} 54. Kg2 {[%clk 0:01:14.9]} 54... Nxg4 {[%clk 0:01:51.7]} 55. Bb2
{[%clk 0:01:13.9]} 55... Ne3+ {[%clk 0:01:50.3]} 56. Kg1 {[%clk 0:01:04.6]}
56... Nxc4 {[%clk 0:01:50]} 57. Bc1+ {[%clk 0:01:02]} 57... Kg4 {[%clk
0:01:49.2]} 58. Kg2 {[%clk 0:00:58.6]} 58... b5 {[%clk 0:01:49.2]} 59. Kf2
{[%clk 0:00:52.7]} 59... Ne3 {[%clk 0:01:48.8]} 60. Ke2 {[%clk 0:00:47.6]} 60...
Kh3 {[%clk 0:01:48.7]} 61. Kd3 {[%clk 0:00:47.1]} 61... g4 {[%clk 0:01:50.2]}
62. Ke4 {[%clk 0:00:39.2]} 62... g3 {[%clk 0:01:50.4]} 63. Bd2 {[%clk
0:00:37.8]} 63... g2 {[%clk 0:01:51.7]} 0-1

[Event "Venerd-dì-rapid!"]
[Site "Chess.com"]
[Date "2020.04.17"]
[Round "4"]
[White "BAKR1980"]
[Black "MarcoCiva"]
[Result "1-0"]
[WhiteElo "1578"]
[BlackElo "1581"]
[TimeControl "720+3"]
[EndTime "7:27:01 PDT"]
[Termination "BAKR1980 ha vinto per abbandono"]

1. e4 {[%clk 0:12:02.9]} 1... e5 {[%clk 0:11:55.6]} 2. Nf3 {[%clk 0:11:54.6]}
2... Nc6 {[%clk 0:11:55.8]} 3. Bc4 {[%clk 0:11:55.5]} 3... Bc5 {[%clk
0:11:50.2]} 4. d4 {[%clk 0:11:55.3]} 4... exd4 {[%clk 0:11:36.4]} 5. c3 {[%clk
0:11:56.3]} 5... dxc3 {[%clk 0:11:34.1]} 6. Bxf7+ {[%clk 0:11:56.8]} 6... Kxf7
{[%clk 0:11:34.6]} 7. Qd5+ {[%clk 0:11:57.4]} 7... Ke8 {[%clk 0:11:13.3]} 8.
Qxc5 {[%clk 0:11:58.6]} 8... d6 {[%clk 0:11:11.4]} 9. Qxc3 {[%clk 0:11:59.2]}
9... Bg4 {[%clk 0:10:58.8]} 10. Qxg7 {[%clk 0:11:56.6]} 10... Qf6 {[%clk
0:10:40]} 11. Qxg4 {[%clk 0:11:55.2]} 11... Nge7 {[%clk 0:10:33.4]} 12. Nc3
{[%clk 0:11:48.9]} 12... Rg8 {[%clk 0:10:31.8]} 13. Qh5+ {[%clk 0:11:49.7]}
13... Ng6 {[%clk 0:10:25.5]} 14. Nd5 {[%clk 0:11:40.6]} 14... Qf7 {[%clk
0:10:02.1]} 15. Ng5 {[%clk 0:11:18.3]} 15... Qd7 {[%clk 0:09:48.8]} 16. Nf6+
{[%clk 0:11:12]} 1-0

[Event "Venerd-dì-rapid!"]
[Site "Chess.com"]
[Date "2020.04.17"]
[Round "4"]
[White "sergiodone"]
[Black "fausto2p"]
[Result "1-0"]
[WhiteElo "1300"]
[BlackElo "866"]
[TimeControl "720+3"]
[EndTime "7:32:36 PDT"]
[Termination "sergiodone ha vinto per scaccomatto"]

1. e4 {[%clk 0:11:56.8]} 1... e6 {[%clk 0:12:00.1]} 2. d4 {[%clk 0:11:57.7]}
2... d5 {[%clk 0:12:01.2]} 3. Nd2 {[%clk 0:11:57.9]} 3... c5 {[%clk 0:11:58.1]}
4. Ngf3 {[%clk 0:11:58.3]} 4... Nc6 {[%clk 0:11:57]} 5. c3 {[%clk 0:11:58.7]}
5... cxd4 {[%clk 0:11:54.5]} 6. cxd4 {[%clk 0:11:59.4]} 6... Bb4 {[%clk
0:11:39]} 7. e5 {[%clk 0:11:58.7]} 7... Nh6 {[%clk 0:11:24.1]} 8. h3 {[%clk
0:11:52.3]} 8... Nf5 {[%clk 0:11:24.5]} 9. a3 {[%clk 0:11:44.2]} 9... Bxd2+
{[%clk 0:11:22.4]} 10. Qxd2 {[%clk 0:11:44.1]} 10... O-O {[%clk 0:11:06.9]} 11.
Be2 {[%clk 0:11:36.3]} 11... Qb6 {[%clk 0:11:06.5]} 12. O-O {[%clk 0:11:36.4]}
12... Nfxd4 {[%clk 0:10:55.6]} 13. Nxd4 {[%clk 0:11:30]} 13... Nxd4 {[%clk
0:10:54.8]} 14. Bd1 {[%clk 0:11:07.7]} 14... Nb3 {[%clk 0:10:52.9]} 15. Bxb3
{[%clk 0:10:46.8]} 15... Qxb3 {[%clk 0:10:52.3]} 16. a4 {[%clk 0:10:39.1]} 16...
Bd7 {[%clk 0:10:41.7]} 17. Ra3 {[%clk 0:10:38.9]} 17... Qb6 {[%clk 0:10:14]} 18.
a5 {[%clk 0:10:38.5]} 18... Qb5 {[%clk 0:10:09.1]} 19. Re1 {[%clk 0:10:31.4]}
19... Rac8 {[%clk 0:09:54.5]} 20. Rg3 {[%clk 0:10:20.2]} 20... g6 {[%clk
0:09:31.1]} 21. h4 {[%clk 0:09:33]} 21... Rc4 {[%clk 0:09:31.5]} 22. h5 {[%clk
0:09:29.4]} 22... Qc5 {[%clk 0:08:42.2]} 23. h6 {[%clk 0:09:25.2]} 23... Rc2
{[%clk 0:08:38]} 24. Qf4 {[%clk 0:09:24.9]} 24... Bc6 {[%clk 0:08:21.5]} 25. Qf6
{[%clk 0:09:25.2]} 25... Rxf2 {[%clk 0:06:56.5]} 26. Qg7# {[%clk 0:09:25.8]} 1-0

[Event "Venerd-dì-rapid!"]
[Site "Chess.com"]
[Date "2020.04.17"]
[Round "4"]
[White "karab89"]
[Black "FrancescoZasa"]
[Result "1-0"]
[WhiteElo "1343"]
[BlackElo "883"]
[TimeControl "720+3"]
[EndTime "7:36:50 PDT"]
[Termination "karab89 ha vinto per scaccomatto"]

1. e4 {[%clk 0:12:02.9]} 1... e5 {[%clk 0:11:59.6]} 2. Nf3 {[%clk 0:12:02.9]}
2... Nf6 {[%clk 0:11:57.8]} 3. Nxe5 {[%clk 0:11:57.1]} 3... Nxe4 {[%clk
0:11:57.9]} 4. Bc4 {[%clk 0:11:44]} 4... Bc5 {[%clk 0:11:44]} 5. O-O {[%clk
0:11:19.9]} 5... d6 {[%clk 0:11:39.5]} 6. Nxf7 {[%clk 0:11:10.1]} 6... Qd7
{[%clk 0:11:00.2]} 7. Nxh8 {[%clk 0:11:00.6]} 7... b5 {[%clk 0:10:38]} 8. Bd5
{[%clk 0:10:50.8]} 8... c6 {[%clk 0:10:33.2]} 9. Bxe4 {[%clk 0:10:38.4]} 9... d5
{[%clk 0:10:27.6]} 10. Bxh7 {[%clk 0:10:37.5]} 10... Na6 {[%clk 0:10:00.1]} 11.
Qh5+ {[%clk 0:09:29.3]} 11... Kd8 {[%clk 0:09:53.4]} 12. Nf7+ {[%clk 0:09:28.8]}
12... Kc7 {[%clk 0:09:27.6]} 13. Qe5+ {[%clk 0:09:01]} 13... Bd6 {[%clk
0:09:22.7]} 14. Nxd6 {[%clk 0:09:01.6]} 14... Qxd6 {[%clk 0:09:21.9]} 15. Qxg7+
{[%clk 0:09:04]} 15... Qd7 {[%clk 0:09:19.8]} 16. Qxd7+ {[%clk 0:09:04.2]} 16...
Bxd7 {[%clk 0:09:15.4]} 17. Re1 {[%clk 0:09:03.3]} 17... Nc5 {[%clk 0:09:15.9]}
18. f3 {[%clk 0:08:59.1]} 18... Re8 {[%clk 0:09:15.7]} 19. Rxe8 {[%clk
0:08:59.5]} 19... Bxe8 {[%clk 0:09:15.7]} 20. d4 {[%clk 0:09:01.3]} 20... Ne6
{[%clk 0:09:10.5]} 21. c3 {[%clk 0:09:01.5]} 21... c5 {[%clk 0:09:07.8]} 22.
dxc5 {[%clk 0:09:01.5]} 22... Nxc5 {[%clk 0:09:09.6]} 23. Bf4+ {[%clk
0:09:02.6]} 23... Kb6 {[%clk 0:09:07.7]} 24. Nd2 {[%clk 0:09:00]} 24... a5
{[%clk 0:08:55.3]} 25. Be3 {[%clk 0:08:58.4]} 25... Bf7 {[%clk 0:08:20.1]} 26.
Bxc5+ {[%clk 0:08:24.1]} 26... Kxc5 {[%clk 0:08:19.6]} 27. Nb3+ {[%clk
0:08:11.7]} 27... Kb6 {[%clk 0:08:05.9]} 28. Nd4 {[%clk 0:08:11.9]} 28... b4
{[%clk 0:08:02.8]} 29. cxb4 {[%clk 0:08:08.9]} 29... axb4 {[%clk 0:08:04.2]} 30.
a3 {[%clk 0:08:09.7]} 30... bxa3 {[%clk 0:08:04.7]} 31. bxa3 {[%clk 0:08:11.2]}
31... Kc5 {[%clk 0:07:40.8]} 32. Nf5 {[%clk 0:07:59.7]} 32... Be6 {[%clk
0:07:19.7]} 33. Kf2 {[%clk 0:08:01]} 33... Bxf5 {[%clk 0:07:18.6]} 34. Bxf5
{[%clk 0:08:02.1]} 34... Kd4 {[%clk 0:07:16.5]} 35. g4 {[%clk 0:08:02.3]} 35...
Ke5 {[%clk 0:07:11.9]} 36. a4 {[%clk 0:08:01.5]} 36... Kf6 {[%clk 0:07:09.5]}
37. h4 {[%clk 0:08:01.7]} 37... d4 {[%clk 0:07:05.3]} 38. f4 {[%clk 0:08:01]}
38... d3 {[%clk 0:07:05.9]} 39. Bxd3 {[%clk 0:08:02.6]} 39... Ke6 {[%clk
0:07:03.8]} 40. a5 {[%clk 0:07:59.6]} 40... Kd5 {[%clk 0:07:03.3]} 41. a6 {[%clk
0:08:01.3]} 41... Kd4 {[%clk 0:07:05.2]} 42. a7 {[%clk 0:08:01.1]} 42... Kxd3
{[%clk 0:07:06.6]} 43. a8=Q {[%clk 0:08:01.6]} 43... Kc2 {[%clk 0:07:05.2]} 44.
Qe4+ {[%clk 0:08:01.4]} 44... Kb2 {[%clk 0:07:05.9]} 45. Rb1+ {[%clk 0:07:58.7]}
45... Kc3 {[%clk 0:07:02.2]} 46. Qb4+ {[%clk 0:07:57.9]} 46... Kd3 {[%clk
0:06:59.4]} 47. Rb3+ {[%clk 0:07:59.3]} 47... Kc2 {[%clk 0:06:56.6]} 48. Qc3+
{[%clk 0:08:00.2]} 48... Kd1 {[%clk 0:06:52]} 49. Rb1# {[%clk 0:08:01.8]} 1-0

[Event "Venerd-dì-rapid!"]
[Site "Chess.com"]
[Date "2020.04.17"]
[Round "4"]
[White "donaldnecesito"]
[Black "Ollarov"]
[Result "0-1"]
[WhiteElo "1702"]
[BlackElo "1997"]
[TimeControl "720+3"]
[EndTime "7:39:44 PDT"]
[Termination "Ollarov ha vinto per abbandono"]

1. e4 {[%clk 0:12:02.9]} 1... c5 {[%clk 0:12:01]} 2. Nf3 {[%clk 0:12:04.4]} 2...
e6 {[%clk 0:12:02.7]} 3. d4 {[%clk 0:12:02.2]} 3... cxd4 {[%clk 0:12:04.8]} 4.
Nxd4 {[%clk 0:12:03.6]} 4... Nc6 {[%clk 0:12:07.3]} 5. Nc3 {[%clk 0:12:01.9]}
5... Qc7 {[%clk 0:12:08.7]} 6. a3 {[%clk 0:11:45.6]} 6... a6 {[%clk 0:12:07.9]}
7. Bc4 {[%clk 0:11:37.2]} 7... Nf6 {[%clk 0:12:06.5]} 8. O-O {[%clk 0:11:34.6]}
8... Nxd4 {[%clk 0:11:27.2]} 9. Qxd4 {[%clk 0:11:34.1]} 9... Bd6 {[%clk
0:11:28.9]} 10. g3 {[%clk 0:09:49.9]} 10... Be5 {[%clk 0:11:30.5]} 11. Qd3
{[%clk 0:09:42.7]} 11... b5 {[%clk 0:11:33]} 12. Bb3 {[%clk 0:09:38.4]} 12... h5
{[%clk 0:11:33.8]} 13. Ne2 {[%clk 0:09:31.1]} 13... Bb7 {[%clk 0:11:29.7]} 14.
f3 {[%clk 0:09:19]} 14... h4 {[%clk 0:11:21.7]} 15. Bf4 {[%clk 0:08:32.5]} 15...
hxg3 {[%clk 0:11:23.2]} 16. hxg3 {[%clk 0:08:34.3]} 16... Qc5+ {[%clk
0:10:30.1]} 17. Be3 {[%clk 0:08:21]} 17... Qc7 {[%clk 0:10:25.5]} 18. Bf4 {[%clk
0:08:00.4]} 18... d5 {[%clk 0:10:21.8]} 19. exd5 {[%clk 0:07:22.6]} 19... Nxd5
{[%clk 0:10:16.2]} 20. Bxd5 {[%clk 0:06:53.6]} 20... Bxd5 {[%clk 0:10:17.3]} 21.
Rf2 {[%clk 0:06:07.2]} 21... Bxf4 {[%clk 0:09:54.6]} 22. Nxf4 {[%clk 0:06:01.1]}
22... O-O-O {[%clk 0:09:56.7]} 23. a4 {[%clk 0:05:35.1]} 23... Bc4 {[%clk
0:09:42.8]} 24. Qe3 {[%clk 0:05:10.1]} 24... g5 {[%clk 0:09:44.1]} 25. Nd3
{[%clk 0:04:14.6]} 25... Rh3 {[%clk 0:09:32.4]} 26. Rg2 {[%clk 0:03:48]} 26...
Rdh8 {[%clk 0:09:02.9]} 27. Kf2 {[%clk 0:03:41]} 27... Bxd3 {[%clk 0:08:50.1]}
28. cxd3 {[%clk 0:03:42.2]} 28... Rh1 {[%clk 0:08:43.3]} 29. Rxh1 {[%clk
0:02:57.9]} 29... Rxh1 {[%clk 0:08:44.1]} 30. axb5 {[%clk 0:02:57.4]} 30... Qc2+
{[%clk 0:08:37.8]} 31. Qe2 {[%clk 0:02:58.9]} 31... Qc5+ {[%clk 0:08:35.5]} 0-1

[Event "Venerd-dì-rapid!"]
[Site "Chess.com"]
[Date "2020.04.17"]
[Round "4"]
[White "markk000"]
[Black "bellapero"]
[Result "1-0"]
[WhiteElo "1577"]
[BlackElo "1262"]
[TimeControl "720+3"]
[EndTime "7:41:12 PDT"]
[Termination "markk000 ha vinto per scaccomatto"]

1. d4 {[%clk 0:12:02.9]} 1... d5 {[%clk 0:12:00.5]} 2. c4 {[%clk 0:11:58.6]}
2... e6 {[%clk 0:12:01.1]} 3. Nc3 {[%clk 0:12:00.3]} 3... Nc6 {[%clk 0:11:56.2]}
4. Nf3 {[%clk 0:11:55]} 4... Nf6 {[%clk 0:11:55.5]} 5. Bg5 {[%clk 0:11:46.8]}
5... g6 {[%clk 0:11:41.8]} 6. e3 {[%clk 0:11:42.9]} 6... Bg7 {[%clk 0:11:42.4]}
7. Bd3 {[%clk 0:11:43.2]} 7... O-O {[%clk 0:11:41.3]} 8. O-O {[%clk 0:11:44.8]}
8... Qe8 {[%clk 0:11:07.7]} 9. Bxf6 {[%clk 0:11:38.6]} 9... Bxf6 {[%clk
0:11:07.7]} 10. cxd5 {[%clk 0:11:41]} 10... exd5 {[%clk 0:10:57.3]} 11. Nxd5
{[%clk 0:11:42.1]} 11... Qd8 {[%clk 0:09:40.1]} 12. Nc3 {[%clk 0:11:05.6]} 12...
Bg7 {[%clk 0:09:15.4]} 13. h3 {[%clk 0:10:25.9]} 13... Nb4 {[%clk 0:08:52.4]}
14. Re1 {[%clk 0:10:10.6]} 14... Nxd3 {[%clk 0:08:34.7]} 15. Qxd3 {[%clk
0:10:13.5]} 15... Bf5 {[%clk 0:07:46]} 16. e4 {[%clk 0:10:12.6]} 16... Be6
{[%clk 0:07:31.7]} 17. d5 {[%clk 0:10:12]} 17... c6 {[%clk 0:07:13.6]} 18. Rad1
{[%clk 0:10:11.3]} 18... cxd5 {[%clk 0:07:05.2]} 19. exd5 {[%clk 0:10:14.2]}
19... Bf5 {[%clk 0:06:55.5]} 20. Qb5 {[%clk 0:10:11]} 20... Bd7 {[%clk
0:06:20.4]} 21. Qxb7 {[%clk 0:09:24.5]} 21... Rb8 {[%clk 0:06:10.6]} 22. Qxa7
{[%clk 0:09:25.5]} 22... Rxb2 {[%clk 0:06:05.9]} 23. Na4 {[%clk 0:09:14.2]}
23... Rxa2 {[%clk 0:05:51.7]} 24. Ne5 {[%clk 0:08:51.2]} 24... Bxa4 {[%clk
0:05:37]} 25. Rb1 {[%clk 0:08:28.4]} 25... Qxd5 {[%clk 0:05:11.1]} 26. Nf3
{[%clk 0:08:10.5]} 26... Bc3 {[%clk 0:04:14.2]} 27. Rec1 {[%clk 0:07:45.6]}
27... Bb2 {[%clk 0:03:32]} 28. Rxb2 {[%clk 0:07:33.1]} 28... Rxb2 {[%clk
0:03:23.6]} 29. Qxa4 {[%clk 0:07:34.9]} 29... Ra8 {[%clk 0:02:42.3]} 30. Qh4
{[%clk 0:07:31.9]} 30... Raa2 {[%clk 0:02:06.5]} 31. Qh6 {[%clk 0:07:17.3]}
31... Rxf2 {[%clk 0:01:57.2]} 32. Rc8+ {[%clk 0:07:18.7]} 32... Qd8 {[%clk
0:01:15]} 33. Rxd8# {[%clk 0:07:19.7]} 1-0

[Event "Venerd-dì-rapid!"]
[Site "Chess.com"]
[Date "2020.04.17"]
[Round "4"]
[White "giulioscaglione"]
[Black "sirmale49"]
[Result "0-1"]
[WhiteElo "1237"]
[BlackElo "1364"]
[TimeControl "720+3"]
[EndTime "7:45:34 PDT"]
[Termination "sirmale49 ha vinto per abbandono"]

1. b3 {[%clk 0:11:29.3]} 1... Nf6 {[%clk 0:11:44.5]} 2. Bb2 {[%clk 0:11:26.4]}
2... e6 {[%clk 0:11:46.2]} 3. e3 {[%clk 0:11:26.7]} 3... g6 {[%clk 0:11:42.8]}
4. Ne2 {[%clk 0:11:26]} 4... Bg7 {[%clk 0:11:44.3]} 5. Ng3 {[%clk 0:11:25.5]}
5... O-O {[%clk 0:11:44.6]} 6. d3 {[%clk 0:11:26.5]} 6... Nc6 {[%clk 0:11:45.6]}
7. Nd2 {[%clk 0:11:27.6]} 7... d5 {[%clk 0:11:44.8]} 8. Be2 {[%clk 0:11:22.8]}
8... b6 {[%clk 0:11:30.6]} 9. a3 {[%clk 0:11:14.3]} 9... Bb7 {[%clk 0:11:30.7]}
10. O-O {[%clk 0:11:15.5]} 10... Ne7 {[%clk 0:10:56.8]} 11. Bf3 {[%clk 0:11:03]}
11... Rb8 {[%clk 0:10:35.7]} 12. e4 {[%clk 0:10:29.1]} 12... dxe4 {[%clk
0:10:23.6]} 13. Ndxe4 {[%clk 0:10:22.2]} 13... Nxe4 {[%clk 0:10:11.5]} 14. Bxg7
{[%clk 0:10:22.4]} 14... Nxg3 {[%clk 0:09:57]} 15. Bxf8 {[%clk 0:10:04.6]} 15...
Nxf1 {[%clk 0:09:56.3]} 16. Bxe7 {[%clk 0:10:00.8]} 16... Qxe7 {[%clk
0:09:13.8]} 17. Kxf1 {[%clk 0:09:59]} 17... Bxf3 {[%clk 0:09:11.9]} 18. Qxf3
{[%clk 0:10:00.2]} 18... Qc5 {[%clk 0:09:06.1]} 19. c4 {[%clk 0:09:49]} 19...
Rd8 {[%clk 0:08:54.6]} 20. b4 {[%clk 0:09:25.6]} 20... Qd4 {[%clk 0:08:55.4]}
21. Rd1 {[%clk 0:09:12.9]} 21... Qc3 {[%clk 0:08:50.2]} 22. b5 {[%clk
0:05:46.3]} 22... Qxa3 {[%clk 0:08:39.5]} 23. g3 {[%clk 0:05:31.8]} 23... a5
{[%clk 0:08:22.4]} 24. bxa6 {[%clk 0:05:16.8]} 24... Qxa6 {[%clk 0:08:21.4]} 25.
Qc6 {[%clk 0:05:13]} 25... Qa7 {[%clk 0:07:32.2]} 26. h4 {[%clk 0:04:22.8]}
26... Qb8 {[%clk 0:07:19.6]} 27. Qb5 {[%clk 0:04:14.8]} 27... Rd6 {[%clk
0:07:17.2]} 28. c5 {[%clk 0:03:49.4]} 28... Rd5 {[%clk 0:07:16.3]} 29. d4 {[%clk
0:03:46.3]} 29... Qd8 {[%clk 0:07:15.5]} 30. Ra1 {[%clk 0:02:28.5]} 30... bxc5
{[%clk 0:07:00.7]} 31. Qc6 {[%clk 0:02:28.4]} 31... Kg7 {[%clk 0:06:25]} 32.
dxc5 {[%clk 0:02:24.9]} 32... Rd1+ {[%clk 0:06:24.1]} 33. Rxd1 {[%clk
0:02:24.5]} 33... Qxd1+ {[%clk 0:06:25.4]} 34. Kg2 {[%clk 0:02:25.7]} 34... Qd5+
{[%clk 0:06:26.6]} 35. Qxd5 {[%clk 0:02:23.5]} 35... exd5 {[%clk 0:06:28.4]} 36.
Kf3 {[%clk 0:02:26]} 36... Kf6 {[%clk 0:06:30.3]} 37. Ke3 {[%clk 0:02:28]} 37...
Ke5 {[%clk 0:06:31.6]} 38. f4+ {[%clk 0:02:24.8]} 38... Ke6 {[%clk 0:06:27.7]}
39. Kd4 {[%clk 0:02:25.3]} 39... f5 {[%clk 0:06:28.3]} 40. Kc3 {[%clk 0:02:13]}
40... h5 {[%clk 0:06:25.6]} 41. Kd4 {[%clk 0:02:09.1]} 41... c6 {[%clk
0:06:21.4]} 42. Kc3 {[%clk 0:02:10.3]} 42... Kf6 {[%clk 0:06:09.2]} 43. Kd4
{[%clk 0:02:11.3]} 43... Ke6 {[%clk 0:06:08.8]} 44. Kc3 {[%clk 0:02:12.7]} 44...
Kd7 {[%clk 0:05:56.1]} 45. Kd4 {[%clk 0:02:14.3]} 45... Kc7 {[%clk 0:05:54.5]}
46. Ke5 {[%clk 0:02:14.1]} 46... Kb7 {[%clk 0:05:51.8]} 47. Kf6 {[%clk
0:01:36.2]} 47... d4 {[%clk 0:05:51.8]} 48. Kxg6 {[%clk 0:01:38.5]} 48... d3
{[%clk 0:05:53.7]} 49. Kxf5 {[%clk 0:01:41]} 49... d2 {[%clk 0:05:55.4]} 50. Kg5
{[%clk 0:01:43.6]} 50... d1=Q {[%clk 0:05:56.1]} 51. f5 {[%clk 0:01:41.7]} 51...
Qg4+ {[%clk 0:05:56.8]} 52. Kf6 {[%clk 0:01:40.5]} 52... Qxg3 {[%clk 0:05:56.1]}
53. Ke6 {[%clk 0:01:42.2]} 53... Qxh4 {[%clk 0:05:56.1]} 54. f6 {[%clk
0:01:44.2]} 54... Qg4+ {[%clk 0:05:54.9]} 55. Ke7 {[%clk 0:01:45.9]} 55... Qe4+
{[%clk 0:05:51.4]} 56. Kf8 {[%clk 0:01:41.6]} 56... Qf5 {[%clk 0:05:52.4]} 57.
f7 {[%clk 0:01:43.4]} 57... Qxf7+ {[%clk 0:05:53.3]} 58. Kxf7 {[%clk 0:01:44.8]}
58... h4 {[%clk 0:05:54.8]} 0-1

[Event "Venerd-dì-rapid!"]
[Site "Chess.com"]
[Date "2020.04.17"]
[Round "5"]
[White "FrancescoZasa"]
[Black "fausto2p"]
[Result "0-1"]
[WhiteElo "766"]
[BlackElo "975"]
[TimeControl "720+3"]
[EndTime "7:57:43 PDT"]
[Termination "fausto2p ha vinto per scaccomatto"]

1. d4 {[%clk 0:12:02.9]} 1... d5 {[%clk 0:12:00.4]} 2. Nf3 {[%clk 0:12:03.3]}
2... Nf6 {[%clk 0:11:58.2]} 3. Nc3 {[%clk 0:12:03.1]} 3... e6 {[%clk 0:11:59]}
4. e3 {[%clk 0:12:03.3]} 4... c5 {[%clk 0:11:49.3]} 5. Bb5+ {[%clk 0:11:48.8]}
5... Bd7 {[%clk 0:11:42.8]} 6. Bxd7+ {[%clk 0:11:47.6]} 6... Qxd7 {[%clk
0:11:41.2]} 7. O-O {[%clk 0:11:43.6]} 7... Nc6 {[%clk 0:11:40.7]} 8. dxc5 {[%clk
0:11:28]} 8... Bxc5 {[%clk 0:11:41.1]} 9. a3 {[%clk 0:11:23.6]} 9... O-O {[%clk
0:11:39.5]} 10. b4 {[%clk 0:11:24.4]} 10... Bd6 {[%clk 0:11:33.9]} 11. h3 {[%clk
0:10:55.4]} 11... a6 {[%clk 0:11:34.1]} 12. g4 {[%clk 0:10:55.7]} 12... h6
{[%clk 0:11:33.9]} 13. e4 {[%clk 0:10:26.1]} 13... Nxe4 {[%clk 0:11:14.7]} 14.
Nxe4 {[%clk 0:10:17.6]} 14... dxe4 {[%clk 0:11:15.1]} 15. Nd4 {[%clk 0:09:50.1]}
15... Nxd4 {[%clk 0:11:10.3]} 16. Qxd4 {[%clk 0:09:50]} 16... Bh2+ {[%clk
0:11:06.9]} 17. Kxh2 {[%clk 0:09:45.9]} 17... Qxd4 {[%clk 0:11:07.7]} 18. Bb2
{[%clk 0:09:31.4]} 18... Qxb2 {[%clk 0:11:07]} 19. h4 {[%clk 0:09:09]} 19...
Qxc2 {[%clk 0:11:02.5]} 20. Rac1 {[%clk 0:09:06.4]} 20... Qb2 {[%clk 0:10:59.3]}
21. Ra1 {[%clk 0:08:59.7]} 21... Rfd8 {[%clk 0:10:57.1]} 22. g5 {[%clk
0:08:49.5]} 22... hxg5 {[%clk 0:10:56.1]} 23. hxg5 {[%clk 0:08:51]} 23... e3
{[%clk 0:10:56.2]} 24. Rfe1 {[%clk 0:08:19.5]} 24... Qxf2+ {[%clk 0:10:51.1]}
25. Kh3 {[%clk 0:08:07.8]} 25... Rd2 {[%clk 0:10:44.6]} 26. Rf1 {[%clk
0:07:53.9]} 26... Qh2+ {[%clk 0:10:38.9]} 27. Kg4 {[%clk 0:07:52.1]} 27... e2
{[%clk 0:10:35.3]} 28. Rh1 {[%clk 0:07:51.8]} 28... Qxh1 {[%clk 0:10:22.9]} 29.
Rxh1 {[%clk 0:07:50.5]} 29... Rd1 {[%clk 0:10:24.5]} 30. Kf4 {[%clk 0:07:30.4]}
30... Rxh1 {[%clk 0:10:22.8]} 31. Kf3 {[%clk 0:07:20.9]} 31... e1=Q {[%clk
0:09:58]} 32. Kg4 {[%clk 0:07:19.3]} 32... Rf1 {[%clk 0:09:51.4]} 33. g6 {[%clk
0:07:12.1]} 33... f6 {[%clk 0:09:45.5]} 34. Kh3 {[%clk 0:06:45.6]} 34... Rg1
{[%clk 0:09:35.6]} 35. Kh2 {[%clk 0:06:32.8]} 35... Qg3# {[%clk 0:09:33.5]} 0-1